[Event "Berliner IM-Turnier 2025"]
[Site "Berlin"]
[Date "2025.02.24"]
[Round "1.6"]
[White "Florstedt, Johannes"]
[Black "Zobel, Christian"]
[Result "1-0"]
[Annotator "TA"]
[ECO "B41"]
[WhiteElo "2349"]
[BlackElo "2188"]
[PlyCount "65"]
[EventDate "2025.02.23"]
[EventType "tourn"]
[EventCountry "GER"]
[SourceTitle "playchess.com"]
[Source "ChessBase"]
[SourceQuality "1"]
[TimeControl "40/5400+30:1800+30"]

{[%evp 23,65,71,103,114,96,104,155,112,174,160,158,155,154,157,156,159,154,163,143,29,69,64,139,114,164,157,131,144,318,310,295,299,408,408,413,406,399,325,727,698,1049,1025,29987,29985]} 1. e4 {[%emt 0:00:03]} c5 {[%emt 0:00:13]} 2. Nf3 {[%emt 0:00:05]} e6 {[%emt 0:00:14]} 3. d4 {[%emt 0:00:05]} cxd4 {[%emt 0:00:03]} 4. Nxd4 {[%emt 0:00:07]} a6 {[%emt 0:00:17]} 5. c4 {[%emt 0:00:06]} Nf6 {[%emt 0:00:10]} 6. Nc3 {[%emt 0:00:05]} Qc7 {[%emt 0:00:36]} 7. Be2 {[%emt 0:00:23]} Be7 {[%emt 0:01:11]} 8. f4 {[%emt 0:01:24]} d6 {[%emt 0:04:58]} 9. Be3 {[%emt 0:03:15]} O-O {[%emt 0:05:04]} 10. Rc1 {[%emt 0:00:21]} b6 {[%emt 0:06:41]} 11. Bf3 {[%emt 0:05:11]} Bb7 {[%emt 0:01:19]} 12. O-O {[%emt 0:01:37]} Nbd7 {[%emt 0:05:39][%cal Oh7h6]} 13. g4 {[%emt 0:00:17][%cal Bg2g4,Bg4g5][%mdl 32] B41: Sicilian: Kan Variation: 5 c4.} Nc5 {[%emt 0:05:36]} 14. Qc2 {[%emt 0:00:09]} e5 {[%emt 0:03:43]} ({Black should play} 14... Ne8) 15. Nf5 {[%emt 0:01:00] White is clearly better.} g6 $146 {[%emt 0:10:16]} (15... exf4 $16 16. Bxf4 g6) ({Predecessor:} 15... Rfe8 16. g5 Nfd7 17. Nxe7+ Rxe7 18. f5 b5 19. b4 Na4 20. Nxa4 bxa4 21. Qxa4 g6 {1-0 Maze,S (2557)-Tokman,A (2316) Titled Tuesday intern op 6th June blitz 2020 (4)}) 16. Nxe7+ {[%emt 0:15:02]} Qxe7 {[%emt 0:00:02]} 17. g5 {[%emt 0:00:19]} Nfd7 {[%emt 0:08:12]} 18. f5 {[%emt 0:08:10]} gxf5 {[%emt 0:05:55]} 19. exf5 {[%emt 0:00:41]} e4 {[%emt 0:01:49]} 20. Bg2 $36 {[%emt 0:00:50][%mdl 2048] White is in control.} f6 {[%emt 0:04:50]} 21. h4 {[%emt 0:04:42] White is more active.} (21. Rcd1 $16) 21... fxg5 {[%emt 0:04:31]} 22. hxg5 {[%emt 0:02:07]} Qe5 {[%emt 0:02:45]} (22... Ne5 $14) 23. f6 $1 $16 {[%emt 0:26:18] White attacks} Nd3 {[%emt 0:02:38] [#]} (23... Rf7 $16) 24. Ne2 $1 $18 {[%emt 0:00:23][%cal Oe2d4,Bc3e2,Be2g3,Bg3f5][%mdl 32]} Nxc1 {[%emt 0:06:04]} 25. Qxc1 {[%emt 0:00:22]} Nc5 $2 {[%emt 0:02:35] Loses the game.} (25... Qe8 $16 {was called for.}) 26. Bd4 {[%emt 0:01:30]} Qe8 {[%emt 0:01:01] [#]} 27. Ng3 $1 {[%emt 0:01:00] Nf5 is the strong threat.} (27. Nf4 e3 $16) 27... Ne6 {[%emt 0:05:57]} 28. Bxb6 {[%emt 0:01:05][%cal Bd4b6,Bb6e3,Be3g5][%mdl 32]} Qg6 {[%emt 0:06:42] Black is weak on the dark squares} 29. Be3 {[%emt 0:00:14]} Kh8 {[%emt 0:01:58]} 30. Nf5 {[%emt 0:01:05]} d5 {[%emt 0:01:03]} (30... Rad8 31. Qc3 Rf7) 31. cxd5 {[%emt 0:00:52]} Nxg5 {[%emt 0:00:58]} 32. Bxg5 {[%emt 0:00:37] This pair of bishops is nice.} Rg8 {[%emt 0:00:08]} 33. f7 {[%emt 0:00:52] Weighted Error Value: White=0.12 (very precise) /Black=0.86  Loses game:     	---       	Black=1      Mistake:       	White=1     	Black=5      Inaccurate:     	---       	Black=3      OK:         	White=6     	Black=5      Best:        	White=1     	Black=3      Strong:       	White=3     	---} 1-0

[Event "Berliner IM-Turnier 2025"]
[Site "Berlin"]
[Date "2025.02.24"]
[Round "1.7"]
[White "Muse, Drazen"]
[Black "Poltorak, Sebastian"]
[Result "0-1"]
[Annotator "TA"]
[ECO "B24"]
[WhiteElo "2309"]
[BlackElo "2407"]
[PlyCount "74"]
[EventDate "2025.02.23"]
[EventType "tourn"]
[EventCountry "GER"]
[SourceTitle "playchess.com"]
[Source "ChessBase"]
[SourceQuality "1"]
[TimeControl "40/5400+30:1800+30"]

{[%evp 21,74,2,0,0,7,0,0,0,3,0,0,0,0,-20,-16,-19,-23,-46,-36,-72,-35,-67,-75,-131,-131,-150,-158,-247,-147,-216,-128,-150,-129,-133,-128,-133,-127,-222,-183,-189,-152,-212,-222,-193,-146,-206,-191,-390,-267,-267,-247,-435,-424,-418,-398]} 1. Nf3 {[%emt 0:00:13]} c5 {[%emt 0:00:10]} 2. e4 {[%emt 0:00:56]} e6 {[%emt 0:00:23]} 3. g3 {[%emt 0:02:33]} Nc6 {[%emt 0:00:40]} 4. Bg2 {[%emt 0:00:05]} Nf6 {[%emt 0:00:35]} 5. Nc3 {[%emt 0:00:53]} d5 {[%emt 0:03:30]} 6. exd5 {[%emt 0:04:25]} exd5 {[%emt 0:00:17]} 7. d4 {[%emt 0:00:43]} cxd4 {[%emt 0:01:02]} 8. Nxd4 {[%emt 0:00:06]} Bg4 {[%emt 0:00:08]} 9. Qd3 {[%emt 0:07:33]} Bc5 {[%emt 0:17:16]} 10. Nxc6 {[%emt 0:08:43]} bxc6 {[%emt 0:00:30]} 11. O-O {[%emt 0:00:07]} O-O {[%emt 0:00:25]} 12. Na4 {[%emt 0:05:05] B24: Closed Sicilian: 3 g3 sidelines.} Bd6 {[%emt 0:02:18]} 13. Be3 {[%emt 0:02:45]} Qa5 {[%emt 0:03:33]} 14. b3 {[%emt 0:01:26] The position is equal.} Rfe8 {[%emt 0:07:01]} 15. Rfe1 {[%emt 0:05:35]} Bh5 $146 {[%emt 0:07:13]} ({Predecessor:} 15... Rad8 16. Bd2 Qc7 17. Rxe8+ Rxe8 18. Re1 Rxe1+ 19. Bxe1 Qe7 20. Bd2 h5 21. f3 Bc8 {½-½ Horvath,A (2469)-Fromm,M (2458) Budapest SixDays 08 GM-B 2023 (3)}) 16. Bd2 {[%emt 0:03:19]} Qc7 {[%emt 0:00:44]} 17. Qa6 {[%emt 0:00:44]} Ne4 {[%emt 0:03:27]} 18. Ba5 {[%emt 0:03:56]} Qd7 {[%emt 0:00:39]} 19. f3 {[%emt 0:06:45]} Ng5 {[%emt 0:07:43]} 20. Qd3 {[%emt 0:06:34]} Bg6 {[%emt 0:03:26]} 21. Qc3 {[%emt 0:00:24]} h5 {[%emt 0:05:57][%cal Oh5h4]} 22. f4 {[%emt 0:05:44]} (22. Bb4 $142) 22... Ne4 $17 {[%emt 0:00:32]} 23. Qf3 {[%emt 0:00:26]} Bf5 {[%emt 0:03:50][%cal Oh5h4]} 24. Bf1 {[%emt 0:01:17]} (24. Bc3 $17) 24... Nc5 {[%emt 0:01:40]} (24... h4 $19 25. Bg2 Qe6 (25... hxg3 $2 26. hxg3 Re7 27. c4 $19)) 25. Nb2 {[%emt 0:05:03]} (25. Bd3 $17 {is a better defense.}) 25... Nb7 {[%emt 0:05:23]} (25... h4 $19 26. Nd3 Ne4 27. gxh4 Rab8) 26. Rxe8+ {[%emt 0:02:09]} Rxe8 {[%emt 0:00:10]} 27. Be1 {[%emt 0:00:14]} Bxc2 {[%emt 0:07:09]} 28. Nd3 {[%emt 0:04:49]} Nc5 $36 {[%emt 0:02:03][%mdl 2048] Black has strong initiative. Black has more active pieces.} 29. Ne5 {[%emt 0:01:03]} (29. Bf2 $17 Bxd3 30. Bxd3) 29... Bxe5 {[%emt 0:01:31]} 30. fxe5 {[%emt 0:00:04] [#] Strongly threatening Qc3.} Bg6 {[%emt 0:00:11]} (30... Rxe5 $2 31. Qc3 Re8 (31... Rxe1 $2 32. Rxe1 Bxb3 33. Qxc5 $18) 32. Qxc5 $18 (32. Qxc2 Ne4 $18)) 31. Bc3 {[%emt 0:04:20]} (31. Qf4 $17) 31... Ne4 $19 {[%emt 0:01:39]} 32. Bb2 {[%emt 0:00:15]} d4 {[%emt 0:03:13]} ({Better is} 32... a5 $19 {And now ...Qa7+ would win.} 33. Rd1 Qa7+ 34. Bd4 c5) 33. Rd1 {[%emt 0:00:29]} (33. Qf4 $17) 33... c5 {[%emt 0:00:04][%cal Oe4g5]} (33... Rxe5 34. Rxd4 Qc8 35. Bg2 $17) 34. b4 $2 {[%emt 0:02:12] [#]} (34. Qf4) 34... Rb8 {[%emt 0:02:23]} ({Weaker is} 34... cxb4 35. Rxd4 Ng5 36. Rxd7 $17) (34... Rxe5 35. bxc5 Ng5 (35... Rxc5 36. Rxd4 Qc6 37. Qe3 $17) 36. Qf4 Rxc5 37. Bxd4 $19) 35. a3 {[%emt 0:00:45]} Ng5 {[%emt 0:02:27]} ({Don't do} 35... cxb4 36. Rxd4 Qe7 37. axb4 $17) 36. Qe2 {[%emt 0:02:42]} (36. Qf4 Ne6 (36... Nh3+ $2 37. Bxh3 Qxh3 38. Rc1 $17) 37. Qd2) 36... d3 {[%emt 0:00:17]} (36... cxb4 $2 37. Rxd4 Qf5 38. Rf4 $19) 37. Qe3 {[%emt 0:00:16]} Qg4 {[%emt 0:00:25] Weighted Error Value: White=0.39/Black=0.21 (precise)   Mistake:       	White=8     	Black=3      Inaccurate:     	White=1     	Black=2      OK:         	White=6     	Black=11     Best:        	White=1     	Black=2} 0-1

[Event "Berliner IM-Turnier 2025"]
[Site "Berlin"]
[Date "2025.02.24"]
[Round "1.8"]
[White "Moritz, Aron"]
[Black "Jakubowski, Krzysztof"]
[Result "1/2-1/2"]
[Annotator "TA"]
[ECO "B13"]
[WhiteElo "2276"]
[BlackElo "2449"]
[PlyCount "82"]
[EventDate "2025.02.23"]
[EventType "tourn"]
[EventCountry "GER"]
[SourceTitle "playchess.com"]
[Source "ChessBase"]
[SourceQuality "1"]
[TimeControl "40/5400+30:1800+30"]

{[%evp 11,82,14,12,14,21,15,23,26,30,-6,8,12,10,-9,-13,-31,0,-20,0,-28,-22,-33,-47,-52,-48,-61,-56,-72,-76,-160,-160,-158,-154,-148,-139,-128,-116,-147,-77,-94,-91,-95,-96,-96,-117,-128,24,26,30,0,0,0,0,0,14,0,0,0,0,0,0,0,0,0,0,0,0,0,0,0,0,0,0]} 1. e4 {[%emt 0:00:04]} c6 {[%emt 0:00:11]} 2. d4 {[%emt 0:00:07]} d5 {[%emt 0:00:08]} 3. exd5 {[%emt 0:00:09]} cxd5 {[%emt 0:00:10]} 4. Bd3 {[%emt 0:00:10]} Nf6 {[%emt 0:00:28]} 5. h3 {[%emt 0:00:38]} Nc6 {[%emt 0:00:43]} 6. c3 {[%emt 0:00:18]} g6 {[%emt 0:07:15]} 7. Nf3 {[%emt 0:00:22] B13: Caro-Kann: Exchange Variation and Panov-Botvinnik Attack.} Bf5 $1 {[%emt 0:00:08] 7...Bf5 is better than 7...Bg7.} 8. Ne5 {[%emt 0:00:22]} Qb6 $146 {[%emt 0:09:34]} (8... Bxd3 9. Nxd3 Bg7 10. Bf4 O-O) (8... Bxd3 9. Nxd3 Bg7 10. Bf4 O-O 11. O-O Ne4 12. Nd2 Nxd2 13. Qxd2 e6 14. g3 Rc8 {0-1 Matlakov,M (2674)-Tabatabaei,M (2623) Titled Tuesday intern op 08th Mar Early blitz 2022 (7)}) 9. O-O {[%emt 0:02:23] White has an edge.} e6 {[%emt 0:04:01]} 10. Qa4 {[%emt 0:26:19]} Bxd3 {[%emt 0:29:17]} 11. Nxd3 {[%emt 0:00:09]} Bd6 {[%emt 0:00:15]} 12. Bh6 {[%emt 0:05:54]} Rg8 {[%emt 0:08:40] Inhibits Bg7.} 13. Be3 {[%emt 0:10:30]} g5 {[%emt 0:00:58]} 14. Nd2 {[%emt 0:03:07]} g4 {[%emt 0:00:30]} 15. h4 {[%emt 0:02:47]} g3 {[%emt 0:01:44]} 16. fxg3 {[%emt 0:13:49]} (16. Qd1 {simplifies} gxf2+ 17. Nxf2 Be7 18. Bg5) 16... Rxg3 {[%emt 0:01:34]} 17. Rxf6 {[%emt 0:03:55]} Rxe3 {[%emt 0:00:08]} 18. Rf3 {[%emt 0:00:57] [#]} Re4 {[%emt 0:33:46]} 19. Raf1 {[%emt 0:10:05]} (19. Nxe4 dxe4 20. Rf6 exd3 $17) (19. Rh3 Rg4) 19... Rxh4 {[%emt 0:00:00] Black attacks} 20. Rxf7 {[%emt 0:00:36]} (20. Rf6 $142) 20... Bh2+ $17 {[%emt 0:00:00]} 21. Kh1 {[%emt 0:03:49]} Bf4+ {[%emt 0:00:00]} 22. Kg1 {[%emt 0:00:04]} Be3+ {[%emt 0:00:00]} (22... Bxd2 $2 23. Rf8+ Kd7 24. R1f7+ (24. Rxa8 Be3+ 25. Rf2 Bxf2+ 26. Kxf2 Kc7 $16) 24... Kd6 25. Rxa8 $18 (25. Qa3+ Nb4 $18)) (22... Kxf7 23. Nxf4 Kg8 (23... Qxb2 $2 24. Nd3+ Ke8 25. Nxb2 $18) 24. g3) 23. R1f2 {[%emt 0:00:12]} O-O-O {[%emt 0:00:00]} 24. Nf3 {[%emt 0:00:43]} Rh5 {[%emt 0:00:00]} (24... Rg4 25. Qc2 Rdg8 (25... Bxf2+ 26. Qxf2 Rdg8 27. Nfe1 $17)) 25. b4 {[%emt 0:05:19][%csl Oc3,Og2][%cal Od3c5] White has weak pawns} Rf5 {[%emt 0:00:00]} 26. Rxh7 {[%emt 0:01:19][%cal Od3c5]} Rg8 {[%emt 0:00:00]} (26... Bxf2+ 27. Kxf2 Rdf8 28. Nc5 $11) 27. Kf1 {[%emt 0:00:43][%cal Od3c5]} Bxf2 {[%emt 0:00:00]} 28. Kxf2 {[%emt 0:00:30] [#]} Qa6 $2 {[%emt 0:00:00]} ({Black should play} 28... Nxd4 $1 $17 29. Qd7+ Kb8) 29. Qxa6 $11 {[%emt 0:02:53] Successful Defense White} bxa6 {[%emt 0:00:00]} 30. Nc5 {[%emt 0:00:56]} e5 {[%emt 0:00:25] The position is equal.} 31. dxe5 {[%emt 0:03:46]} Nxe5 {[%emt 0:02:24]} 32. Rxa7 {[%emt 0:00:13] Ra8+ is the strong threat.} Rg4 {[%emt 0:00:15]} ({Much worse is} 32... Ng4+ $6 33. Ke1 Kb8 34. Re7 $14 (34. Rxa6 Ne3 $11)) 33. Nxa6 {[%emt 0:02:13]} Nxf3 {[%emt 0:02:24]} 34. gxf3 {[%emt 0:00:10][%mdl 4096] Endgame KRR-KRN} Rc4 {[%emt 0:01:09]} 35. b5 {[%emt 0:00:21]} Rxc3 {[%emt 0:00:43][%cal Od5d4] Strongly threatening ...d4!.} 36. b6 {[%emt 0:00:09]} Rfxf3+ {[%emt 0:00:35]} 37. Ke2 {[%emt 0:00:44]} Rfe3+ {[%emt 0:00:14]} 38. Kd2 {[%emt 0:00:11]} Red3+ {[%emt 0:00:05]} 39. Ke2 {[%emt 0:00:04]} Re3+ {[%emt 0:00:10]} 40. Kd2 {[%emt 0:00:05]} Red3+ {[%emt 0:00:03]} 41. Ke2 {[%emt 0:31:18] White wants to mate with b7+.} Re3+ {[%emt 0:30:11] And White is the lucky defender.   Weighted Error Value: White=0.12 (very precise) /Black=0.10 (very precise)   Mistake:       	White=1     	Black=2      Inaccurate:     	White=3     	---        OK:         	White=13    	Black=17     Best:        	White=5     	Black=5      Brilliant:      	---       	Black=1} 1/2-1/2

[Event "Berliner IM-Turnier 2025"]
[Site "Berlin"]
[Date "2025.02.24"]
[Round "1.9"]
[White "Ahmadinia, Ebrahim"]
[Black "Schulze, Lara"]
[Result "1/2-1/2"]
[Annotator "TA"]
[ECO "B22"]
[WhiteElo "2404"]
[BlackElo "2266"]
[PlyCount "61"]
[EventDate "2025.02.23"]
[EventType "tourn"]
[EventCountry "GER"]
[SourceTitle "playchess.com"]
[Source "ChessBase"]
[SourceQuality "1"]
[TimeControl "40/5400+30:1800+30"]

{[%evp 22,61,1,0,0,0,0,-8,-16,-21,-18,-8,-16,-12,-25,-27,-11,-11,-10,-14,-10,-10,-4,-11,-10,-27,-1,-10,-7,-18,0,0,0,0,0,0,0,0,0,0,0,0]} 1. e4 {[%emt 0:00:07]} c5 {[%emt 0:00:09]} 2. c3 {[%emt 0:00:42]} Nf6 {[%emt 0:00:10]} 3. e5 {[%emt 0:00:07]} Nd5 {[%emt 0:00:09]} 4. Nf3 {[%emt 0:00:29]} Nc6 {[%emt 0:00:39]} 5. d4 {[%emt 0:01:17]} cxd4 {[%emt 0:00:25]} 6. cxd4 {[%emt 0:00:03]} d6 {[%emt 0:00:26]} 7. Bc4 {[%emt 0:00:51]} Nb6 {[%emt 0:00:16]} 8. Bb5 {[%emt 0:00:43]} dxe5 {[%emt 0:00:41]} 9. Nxe5 {[%emt 0:00:14]} Bd7 {[%emt 0:00:20]} 10. Nxd7 {[%emt 0:01:18]} Qxd7 {[%emt 0:00:08]} 11. Nc3 {[%emt 0:00:22]} e6 {[%emt 0:02:15]} 12. O-O {[%emt 0:00:45]} a6 {[%emt 0:12:35] B22: Sicilian: 2 c3.} 13. Bxc6 {[%emt 0:00:47]} Qxc6 {[%emt 0:00:15]} 14. Bg5 {[%emt 0:36:03] Recently 14.Qg4 got a lot of attention.} Bb4 {[%emt 0:32:12]} 15. Rc1 {[%emt 0:01:37]} O-O $146 {[%emt 0:06:25]} (15... h6 16. d5 Nxd5 17. Ne4 Qd7 18. Qh5 Be7 19. Rfd1 Bxg5 20. Nxg5 O-O 21. Ne4 Rac8 {½-½ Ali Marandi,C (2525)-Santos Ruiz,M (2555) Titled Tuesday intern op 2nd April blitz 2019 (6)}) 16. Qg4 {[%emt 0:09:13]} f5 {[%emt 0:02:43]} 17. Qg3 {[%emt 0:03:19]} Rac8 {[%emt 0:02:20]} 18. Bf4 {[%emt 0:05:03] Wards off Qd6} Qd7 {[%emt 0:02:39]} 19. Ne2 {[%emt 0:14:47]} Rxc1 {[%emt 0:04:25]} 20. Rxc1 {[%emt 0:01:52] [#] and Rc7 would now be decisive} Rc8 {[%emt 0:00:11]} 21. Rxc8+ {[%emt 0:01:56]} Qxc8 {[%emt 0:01:31]} 22. Be5 {[%emt 0:01:47][%csl Ge5][%cal Rg3g7]} Bf8 {[%emt 0:01:31] White must now prevent ...Qc2.} 23. h4 {[%emt 0:07:37]} Nd5 {[%emt 0:02:19]} 24. Qd3 {[%emt 0:05:06] The position is equal. Prevents Qc2.} Qc6 {[%emt 0:01:44]} 25. Kh2 {[%emt 0:01:37]} Bd6 {[%emt 0:02:43]} 26. Qg3 {[%emt 0:00:54][%csl Ge5,LRd6,LRg7][%cal Rg3g7] [#]} Bxe5 {[%emt 0:04:48]} 27. Qxe5 {[%emt 0:00:11]} Kf7 {[%emt 0:01:36]} 28. Nf4 {[%emt 0:01:16]} Nxf4 {[%emt 0:03:01]} 29. Qxf4 {[%emt 0:00:03]} Qc2 {[%emt 0:01:54]} 30. b3 {[%emt 0:00:27]} Qc6 {[%emt 0:02:30]} 31. Qe5 {[%emt 0:01:22] A rather calm draw.   Weighted Error Value: White=0.03 (flawless) /Black=0.03 (flawless)   Inaccurate:     	---       	Black=1      OK:         	White=9     	Black=7      Best:        	---       	Black=1} 1/2-1/2

[Event "Berliner IM-Turnier 2025"]
[Site "Berlin"]
[Date "2025.02.24"]
[Round "1.10"]
[White "Yatskar, Martin"]
[Black "Noeldner, Julian"]
[Result "1/2-1/2"]
[Annotator "RC"]
[ECO "D78"]
[WhiteElo "2157"]
[BlackElo "2233"]
[PlyCount "69"]
[EventDate "2025.02.23"]
[EventType "tourn"]
[EventCountry "GER"]
[SourceTitle "playchess.com"]
[Source "ChessBase"]
[SourceQuality "1"]
[TimeControl "40/5400+30:1800+30"]

1. d4 {[%emt 0:00:04]} Nf6 {[%emt 0:00:28]} 2. c4 {[%emt 0:00:09]} g6 {[%emt 0:00:19]} 3. Nf3 {[%emt 0:00:29]} Bg7 {[%emt 0:00:06]} 4. g3 {[%emt 0:00:13]} c6 {[%emt 0:00:07]} 5. Bg2 {[%emt 0:00:07]} d5 {[%emt 0:00:05]} 6. O-O {[%emt 0:00:48]} O-O {[%emt 0:00:07]} 7. Qb3 {[%emt 0:00:05]} Qb6 {[%emt 0:00:06]} 8. Nc3 {[%emt 0:00:13]} Rd8 {[%emt 0:00:06]} 9. cxd5 {[%emt 0:03:21]} Nxd5 {[%emt 0:19:24]} 10. Nxd5 {[%emt 0:12:29]} Rxd5 {[%emt 0:00:32]} 11. Qc2 {[%emt 0:00:15]} Rd8 {[%emt 0:04:38]} 12. Bg5 {[%emt 0:10:30]} Re8 {[%emt 0:04:22]} 13. Qd2 {[%emt 0:08:28]} Nd7 {[%emt 0:07:20]} 14. e4 {[%emt 0:04:04]} e5 {[%emt 0:07:18]} 15. Be3 {[%emt 0:03:36]} exd4 {[%emt 0:02:47]} 16. Nxd4 {[%emt 0:00:04]} Qa6 {[%emt 0:06:55]} 17. Bh6 {[%emt 0:04:10]} Bxh6 {[%emt 0:19:31]} 18. Qxh6 {[%emt 0:00:17]} c5 {[%emt 0:00:06]} 19. Nc2 {[%emt 0:18:59]} Qf6 {[%emt 0:05:52]} 20. Ne3 {[%emt 0:01:08]} Qg7 {[%emt 0:04:17]} 21. Qxg7+ {[%emt 0:00:15]} Kxg7 {[%emt 0:00:01]} 22. Nd5 {[%emt 0:00:11]} Rb8 {[%emt 0:00:13]} 23. f4 {[%emt 0:00:20]} b5 {[%emt 0:06:37]} 24. a4 {[%emt 0:01:48]} bxa4 {[%emt 0:03:10]} 25. Rxa4 {[%emt 0:00:33]} Nb6 {[%emt 0:02:03]} 26. Nxb6 {[%emt 0:02:00]} Rxb6 {[%emt 0:01:00]} 27. Rf2 {[%emt 0:01:05]} Bb7 {[%emt 0:00:56]} 28. e5 {[%emt 0:04:05]} Bxg2 {[%emt 0:02:29]} 29. Kxg2 {[%emt 0:00:05]} a6 {[%emt 0:00:05]} 30. Rc2 {[%emt 0:01:24]} f6 {[%emt 0:01:20]} 31. exf6+ {[%emt 0:00:17]} Kxf6 {[%emt 0:00:04]} 32. Kf3 {[%emt 0:01:39]} Rb3+ {[%emt 0:00:53]} 33. Kf2 {[%emt 0:00:51]} Re6 {[%emt 0:00:30]} 34. Ra3 {[%emt 0:03:17]} Reb6 {[%emt 0:01:05]} 35. Rxb3 {[%emt 0:05:05]} 1/2-1/2

[Event "Berliner IM-Turnier 2025"]
[Site "Berlin"]
[Date "2025.02.25"]
[Round "2.6"]
[White "Zobel, Christian"]
[Black "Noeldner, Julian"]
[Result "1/2-1/2"]
[Annotator "RC"]
[ECO "D00"]
[WhiteElo "2188"]
[BlackElo "2233"]
[PlyCount "42"]
[EventDate "2025.02.23"]
[EventType "tourn"]
[EventCountry "GER"]
[SourceTitle "playchess.com"]
[Source "ChessBase"]
[SourceQuality "1"]
[TimeControl "40/5400+30:1800+30"]

1. d4 {[%emt 0:00:03]} Nf6 {[%emt 0:00:05]} 2. Nf3 {[%emt 0:00:13]} g6 {[%emt 0:00:06]} 3. Nc3 {[%emt 0:00:15]} d5 {[%emt 0:00:05]} 4. e3 {[%emt 0:00:21]} Bg7 {[%emt 0:00:55]} 5. Be2 {[%emt 0:00:14]} O-O {[%emt 0:03:06]} 6. Ne5 {[%emt 0:01:14]} c5 {[%emt 0:07:23]} 7. f4 {[%emt 0:05:48]} Nc6 {[%emt 0:15:22]} 8. g4 {[%emt 0:07:32]} cxd4 {[%emt 0:10:37]} 9. exd4 {[%emt 0:01:12]} Qb6 {[%emt 0:00:04]} 10. g5 {[%emt 0:08:40]} Ne4 {[%emt 0:12:58]} 11. Nxe4 {[%emt 0:01:23]} dxe4 {[%emt 0:00:05]} 12. c3 {[%emt 0:00:52]} Nxe5 {[%emt 0:04:52]} 13. fxe5 {[%emt 0:01:39]} f6 {[%emt 0:00:06]} 14. exf6 {[%emt 0:06:40]} exf6 {[%emt 0:00:20]} 15. Qb3+ {[%emt 0:00:46]} Qxb3 {[%emt 0:17:26]} 16. axb3 {[%emt 0:00:03]} Be6 {[%emt 0:01:11]} 17. b4 {[%emt 0:01:17]} f5 {[%emt 0:01:16]} 18. Rf1 {[%emt 0:03:21]} Rfc8 {[%emt 0:00:35]} 19. Be3 {[%emt 0:03:12]} Bf8 {[%emt 0:00:54]} 20. Kd2 {[%emt 0:03:37]} Bd6 {[%emt 0:03:09]} 21. Bf4 {[%emt 0:02:27]} Bxf4+ {[%emt 0:00:46]} 1/2-1/2

[Event "Berliner IM-Turnier 2025"]
[Site "Berlin"]
[Date "2025.02.25"]
[Round "2.7"]
[White "Schulze, Lara"]
[Black "Yatskar, Martin"]
[Result "1/2-1/2"]
[Annotator "RC"]
[ECO "C77"]
[WhiteElo "2266"]
[BlackElo "2157"]
[PlyCount "93"]
[EventDate "2025.02.23"]
[EventType "tourn"]
[EventCountry "GER"]
[SourceTitle "playchess.com"]
[Source "ChessBase"]
[SourceQuality "1"]
[TimeControl "40/5400+30:1800+30"]

1. e4 {[%emt 0:00:02]} e5 {[%emt 0:04:25]} 2. Nf3 {[%emt 0:00:03]} Nc6 {[%emt 0:00:12]} 3. Bb5 {[%emt 0:00:12]} a6 {[%emt 0:00:32]} 4. Ba4 {[%emt 0:00:08]} Nf6 {[%emt 0:00:10]} 5. Nc3 {[%emt 0:00:07]} d6 {[%emt 0:00:50]} 6. Bxc6+ {[%emt 0:02:15]} bxc6 {[%emt 0:00:09]} 7. d4 {[%emt 0:00:05]} Nd7 {[%emt 0:00:05]} 8. O-O {[%emt 0:02:22]} a5 {[%emt 0:01:06]} 9. Be3 {[%emt 0:04:00]} Be7 {[%emt 0:06:45]} 10. dxe5 {[%emt 0:02:41]} dxe5 {[%emt 0:00:04]} 11. Nd2 {[%emt 0:05:24]} O-O {[%emt 0:04:37]} 12. Ne2 {[%emt 0:10:11]} Re8 {[%emt 0:09:03]} 13. Ng3 {[%emt 0:05:40]} Nf8 {[%emt 0:04:13]} 14. Nf5 {[%emt 0:05:47]} Bxf5 {[%emt 0:05:22]} 15. exf5 {[%emt 0:00:10]} Bg5 {[%emt 0:00:14]} 16. Ne4 {[%emt 0:12:16]} Bxe3 {[%emt 0:00:06]} 17. fxe3 {[%emt 0:00:12]} Qxd1 {[%emt 0:01:49]} 18. Rfxd1 {[%emt 0:02:27]} Red8 {[%emt 0:02:26]} 19. Rxd8 {[%emt 0:16:34]} Rxd8 {[%emt 0:00:05]} 20. Kf2 {[%emt 0:00:07]} f6 {[%emt 0:00:04]} 21. b3 {[%emt 0:03:36]} Kf7 {[%emt 0:00:10]} 22. Ke2 {[%emt 0:01:39]} Ke7 {[%emt 0:03:59]} 23. Rd1 {[%emt 0:04:27]} Nd7 {[%emt 0:00:07]} 24. Rd3 {[%emt 0:02:53]} Ra8 {[%emt 0:01:11]} 25. Rc3 {[%emt 0:03:35]} Ra6 {[%emt 0:00:04]} 26. Rc4 {[%emt 0:01:50]} g6 {[%emt 0:01:14]} 27. g4 {[%emt 0:01:20]} g5 {[%emt 0:00:05]} 28. Rc3 {[%emt 0:08:25]} Rb6 {[%emt 0:01:11]} 29. Nd2 {[%emt 0:01:38]} a4 {[%emt 0:12:52]} 30. bxa4 {[%emt 0:02:57]} Ra6 {[%emt 0:07:45]} 31. Rc4 {[%emt 0:00:50]} Kd6 {[%emt 0:01:42]} 32. Ne4+ {[%emt 0:00:53]} Kd5 {[%emt 0:00:05]} 33. Kd3 {[%emt 0:00:11]} c5 {[%emt 0:00:21]} 34. h3 {[%emt 0:01:46]} Kc6 {[%emt 0:00:51]} 35. Kc3 {[%emt 0:00:33]} Ra5 {[%emt 0:00:12]} 36. Kb3 {[%emt 0:00:33]} Nb6 {[%emt 0:00:12]} 37. Nxf6 {[%emt 0:00:23]} Nxc4 {[%emt 0:00:25]} 38. Kxc4 {[%emt 0:00:01]} Rxa4+ {[%emt 0:00:06]} 39. Kb3 {[%emt 0:01:04]} Rb4+ {[%emt 0:00:30]} 40. Kc3 {[%emt 0:00:05]} h6 {[%emt 0:02:21]} 41. a3 {[%emt 0:13:49]} Ra4 {[%emt 0:01:44]} 42. Kb3 {[%emt 0:00:23]} Ra8 {[%emt 0:00:10]} 43. Ne4 {[%emt 0:02:15]} Rb8+ {[%emt 0:04:23]} 44. Kc4 {[%emt 0:02:50]} Ra8 {[%emt 0:03:36]} 45. Kb3 {[%emt 0:01:52]} Rb8+ {[%emt 0:00:14]} 46. Kc4 {[%emt 0:02:49]} Ra8 {[%emt 0:00:05]} 47. Kb3 {[%emt 0:01:09]} 1/2-1/2